bitfinex/quotes_BTCUSD_20250218
["timestamp","ask_amount","ask_price","bid_price","bid_amount"]
[1739856689728,2.17430442,96002.0,96001.0,0.00121433]
[1739856689933,2.330551,96002.0,96001.0,0.00021433]
[1739856690146,2.330551,96002.0,96001.0,0.00121433]
[1739856690360,2.58305465,96002.0,96001.0,0.00021433]
[1739856690568,2.62835465,96002.0,96001.0,0.00021433]
[1739856690776,2.525851,96002.0,96001.0,0.00021433]
[1739856691612,2.525851,96002.0,96001.0,0.00121433]
[1739856692234,2.62835465,96002.0,96001.0,0.00021433]
[1739856692468,2.7308583,96002.0,96001.0,0.00021433]
[1739856692677,2.75016874,96002.0,96001.0,0.00021433]
[1739856692874,2.75016874,96002.0,96001.0,0.00121433]
[1739856693110,1.96286474,96002.0,96001.0,0.00121433]
[1739856693320,2.54516144,96002.0,96001.0,0.00121433]
[1739856693530,2.25652144,96002.0,96001.0,0.00021433]
[1739856693723,2.12585344,96002.0,96001.0,0.00021433]
[1739856694541,2.10918044,96002.0,96001.0,0.00021433]
[1739856694948,2.10918044,96002.0,96001.0,0.00121433]
[1739856695170,2.13053625,96002.0,96001.0,0.00121433]
[1739856695947,2.11122581,96002.0,96001.0,0.00121433]
[1739856696620,2.06807981,96002.0,96001.0,0.00121433]
[1739856696835,1.59174281,96002.0,96001.0,0.00121433]
[1739856697044,1.24180081,96002.0,96001.0,0.00121433]
[1739856697244,0.105477,96002.0,96001.0,0.00121433]
[1739856697376,0.435181,96005.0,96001.0,0.08341433]
[1739856697576,0.15,96003.0,96001.0,0.08341433]
[1739856697807,0.0003406,96002.0,96001.0,0.08341433]
[1739856698050,0.0003406,96002.0,96001.0,0.09527576]
[1739856698496,0.0003406,96002.0,96001.0,0.09627576]
[1739856698669,0.0003406,96002.0,96001.0,0.09611576]
[1739856698886,0.0003406,96002.0,96001.0,0.08325433]
[1739856699113,0.0003406,96002.0,96001.0,0.08425433]
[1739856699384,0.208313,96009.0,96001.0,0.08425433]
[1739856699578,0.11957683,96011.0,96001.0,0.08425433]
[1739856699579,0.112506,96008.0,96001.0,0.08425433]
[1739856699715,0.11957683,96011.0,96002.0,0.27169408]
[1739856699921,0.27580883,96011.0,96002.0,0.11544908]
[1739856700125,0.11957683,96011.0,96002.0,0.11544908]
[1739856700344,0.156239,96007.0,96002.0,0.11544908]
[1739856700728,0.319419,96006.0,96003.0,0.01997034]
[1739856700937,0.319429,96007.0,96004.0,0.10250365]
[1739856701554,0.001,96009.0,96004.0,0.10250365]
[1739856701774,0.001,96007.0,96005.0,0.03739227]
[1739856701973,0.249019,96006.0,96005.0,0.03739227]
[1739856702275,0.22544222,96006.0,96004.0,0.10250365]
[1739856702482,0.00773022,96006.0,96004.0,0.10250365]
[1739856703248,0.16397022,96006.0,96004.0,0.10250365]
[1739856704092,0.16397022,96006.0,96004.0,0.10750365]
[1739856704841,0.16397022,96006.0,96005.0,0.005]
[1739856705103,0.16397022,96006.0,96004.0,0.10750365]
[1739856705518,0.219819,96005.0,96004.0,0.11250365]
[1739856705760,0.219819,96005.0,96004.0,0.10750365]
[1739856706176,0.22754922,96005.0,96004.0,0.10750365]
[1739856706528,0.22754922,96005.0,96004.0,0.10250365]
[1739856706740,0.22754922,96005.0,96004.0,0.005]
[1739856707143,0.00773022,96005.0,96004.0,0.005]
[1739856707353,0.79503422,96005.0,96004.0,0.005]
[1739856707557,0.79503422,96005.0,96004.0,0.011]
[1739856708134,1.73309022,96005.0,96004.0,0.011]
[1739856708322,1.56669222,96005.0,96004.0,0.011]
[1739856708936,0.61945022,96005.0,96004.0,0.011]
[1739856709072,0.63092582,96005.0,96004.0,0.011]
[1739856709286,0.47907782,96005.0,96004.0,0.011]
[1739856709482,0.58143082,96005.0,96004.0,0.011]
[1739856709688,0.47907782,96005.0,96004.0,0.011]
[1739856710207,0.27540282,96005.0,96004.0,0.011]
[1739856712592,0.00807082,96005.0,96004.0,0.011]
[1739856712797,0.00807082,96005.0,96004.0,0.006]
[1739856713227,0.00807082,96005.0,96001.0,5.433e-05]
[1739856713455,0.156246,96003.0,96001.0,5.433e-05]
[1739856713847,0.00807082,96005.0,96002.0,0.13070478]
[1739856714060,0.00807082,96005.0,96004.0,0.237643]
[1739856714375,0.00807082,96005.0,96004.0,0.18390365]
[1739856715144,0.00807082,96005.0,96004.0,0.18890365]
[1739856715388,0.00807082,96005.0,96004.0,0.26341106]
[1739856715564,0.0003406,96005.0,96004.0,0.26341106]
[1739856715740,0.0003406,96005.0,96004.0,0.27041106]
[1739856715946,0.0003406,96005.0,96004.0,0.26341106]
[1739856716153,0.0003406,96005.0,96004.0,0.27041106]
[1739856716586,0.1565816,96005.0,96004.0,0.27041106]
[1739856716794,0.0003406,96005.0,96004.0,0.19090365]
[1739856717012,0.0003406,96005.0,96004.0,0.19790365]
[1739856717463,0.0003406,96005.0,96004.0,0.19090365]
[1739856717840,0.0003406,96005.0,96004.0,0.19790365]
[1739856718043,0.0003406,96005.0,96004.0,0.27781096]
[1739856718609,0.0003406,96005.0,96004.0,0.26381096]
[1739856718831,0.0003406,96005.0,96004.0,0.27781096]
[1739856719645,0.0003406,96005.0,96004.0,0.19790365]
[1739856720434,0.0003406,96005.0,96004.0,0.11650365]
[1739856720640,0.0003406,96005.0,96004.0,0.014]
[1739856721053,0.4678206,96005.0,96004.0,0.014]
[1739856721255,1.2406836,96005.0,96004.0,0.014]
[1739856721458,1.0927646,96005.0,96004.0,0.014]
[1739856721658,0.156246,96002.0,96001.0,5.433e-05]
[1739856721866,1.911204,96002.0,96001.0,5.433e-05]
[1739856722066,0.467547,96002.0,96001.0,5.433e-05]
[1739856722286,0.17715,96002.0,96001.0,5.433e-05]
[1739856722467,0.156245,96003.0,96001.0,5.433e-05]
[1739856722682,0.35777,96002.0,96001.0,5.433e-05]
[1739856723035,0.36550022,96002.0,96001.0,5.433e-05]
[1739856723210,0.36550022,96002.0,96001.0,0.00605433]
[1739856723647,0.36550022,96002.0,96001.0,0.01305433]
[1739856723850,0.35777,96002.0,96001.0,0.01305433]
[1739856724062,0.35777,96002.0,96001.0,0.00605433]
[1739856724374,1.1519973,96002.0,96001.0,0.01305433]
[1739856724791,1.17136807,96002.0,96001.0,0.01305433]
[1739856725641,1.07374307,96002.0,96001.0,0.01305433]
[1739856726285,1.14884307,96002.0,96001.0,0.01305433]
[1739856727899,0.89651107,96002.0,96001.0,0.01305433]
[1739856728375,0.18336507,96002.0,96001.0,0.01305433]
[1739856728505,0.02711907,96002.0,96001.0,0.01305433]
[1739856729049,0.17711907,96002.0,96001.0,0.01305433]
[1739856730174,0.02711907,96002.0,96001.0,0.01305433]
[1739856730363,0.18336507,96002.0,96001.0,0.01305433]
[1739856730627,0.1639943,96002.0,96001.0,0.01305433]
[1739856734359,0.0077483,96002.0,96001.0,0.01305433]
[1739856734571,0.1639943,96002.0,96001.0,0.01305433]
[1739856734967,0.0077483,96002.0,96001.0,0.01305433]
[1739856735179,0.0077483,96002.0,96001.0,0.12158341]
[1739856735955,0.208313,96009.0,96001.0,0.12158341]
[1739856736201,0.15624,96006.0,96001.0,0.12158341]
[1739856736416,0.156238,96007.0,96001.0,0.12158341]
[1739856736616,0.156238,96007.0,96002.0,0.04861734]
[1739856737098,0.15,96010.0,96002.0,0.04861734]
[1739856737246,0.47052,96009.0,96001.0,0.11458341]
[1739856737476,0.156239,96007.0,96001.0,0.11858341]
[1739856737893,0.156236,96009.0,96001.0,0.11858341]
[1739856738232,0.156238,96007.0,96001.0,0.11858341]
[1739856738620,0.156238,96007.0,96002.0,0.04831714]
[1739856738961,0.156239,96007.0,96002.0,0.05331714]
[1739856739298,0.15624,96006.0,96002.0,0.05331714]
[1739856739954,0.15624,96006.0,96002.0,0.005]
[1739856740157,0.156244,96004.0,96002.0,0.005]
[1739856740361,0.156245,96003.0,96002.0,0.005]
[1739856740542,0.156245,96003.0,96002.0,0.011]
[1739856740739,0.156245,96003.0,96002.0,0.006]
[1739856741387,0.208322,96005.0,96002.0,0.006]
[1739856741977,0.156241,96006.0,96002.0,0.005]
[1739856742294,0.208318,96007.0,96002.0,0.006]
[1739856742564,0.156242,96005.0,96002.0,0.006]
[1739856742752,0.156242,96005.0,96002.0,0.012]
[1739856742972,0.156244,96004.0,96001.0,0.10255798]
[1739856743295,0.156245,96003.0,96002.0,0.011]
[1739856743490,0.15,96010.0,96002.0,0.006]
[1739856743706,0.156242,96005.0,96001.0,0.10255798]
[1739856743911,0.15624,96006.0,96002.0,0.0102558]
[1739856744129,0.15624,96006.0,96002.0,0.0162558]
[1739856744465,0.15,96010.0,96002.0,0.0162558]
[1739856744678,0.156245,96003.0,96002.0,0.006]
[1739856745087,0.64481,96003.0,96002.0,0.012]
[1739856745306,0.943549,96003.0,96002.0,0.012]
[1739856745511,0.943549,96003.0,96002.0,0.006]
[1739856745706,0.156246,96002.0,96001.0,5.433e-05]
[1739856745913,0.749494,96002.0,96001.0,5.433e-05]
[1739856746111,0.739204,96002.0,96001.0,5.433e-05]
[1739856747348,0.739204,96002.0,96001.0,0.00605433]
[1739856748126,0.739204,96002.0,96001.0,0.01305433]
[1739856748127,1.324641,96002.0,96001.0,0.01305433]
[1739856748332,2.416152,96002.0,96001.0,0.01305433]
[1739856748545,2.91582765,96002.0,96001.0,0.01305433]
[1739856748749,2.813324,96002.0,96001.0,0.01305433]
[1739856749129,2.84046985,96002.0,96001.0,0.01305433]
[1739856749328,2.84046985,96002.0,96001.0,0.00705433]
[1739856749647,2.84046985,96002.0,96001.0,0.00605433]
[1739856749855,2.84046985,96002.0,96001.0,0.00905433]
[1739856750056,1.77114085,96002.0,96001.0,0.00305433]
[1739856750268,1.06299985,96002.0,96001.0,0.00605433]
[1739856750706,1.04360964,96002.0,96001.0,0.00605433]
[1739856751199,1.04360964,96002.0,96001.0,5.433e-05]
[1739856751498,1.04360964,96002.0,96001.0,0.00605433]
[1739856751907,0.71278164,96002.0,96001.0,0.00305433]
[1739856752048,0.79677964,96002.0,96001.0,0.00305433]
[1739856752246,0.79677964,96002.0,96001.0,0.00605433]
[1739856752449,0.79677964,96002.0,96001.0,0.00305433]
[1739856752690,0.79677964,96002.0,96001.0,5.433e-05]
[1739856752899,0.68748164,96002.0,96001.0,5.433e-05]
[1739856753097,0.67378164,96002.0,96001.0,0.00605433]
[1739856753273,0.36753564,96002.0,96001.0,0.00605433]
[1739856753474,0.00775564,96002.0,96001.0,0.10855798]
[1739856753674,0.00775564,96002.0,96001.0,0.10555798]
[1739856753920,0.00775564,96002.0,96001.0,0.11155798]
[1739856754301,0.156238,96007.0,96001.0,0.10855798]
[1739856754506,0.156238,96007.0,96001.0,0.16435368]
[1739856754714,0.156238,96007.0,96001.0,0.17035368]
[1739856754917,0.156242,96005.0,96001.0,0.17035368]
[1739856755147,0.156242,96005.0,96001.0,0.16435368]
[1739856755334,0.156242,96005.0,96002.0,0.04024107]
[1739856755531,0.197344,96004.0,96001.0,0.10655798]
[1739856755738,0.383269,96005.0,96001.0,0.10655798]
[1739856756102,0.383269,96005.0,96001.0,0.10255798]
[1739856756300,0.156245,96003.0,96001.0,0.10255798]
[1739856756497,0.156243,96005.0,96002.0,0.0234358]
[1739856756723,0.30166,96004.0,96002.0,0.0184358]
[1739856756929,0.457904,96004.0,96002.0,0.0184358]
[1739856757319,0.322675,96003.0,96002.0,0.0184358]
[1739856757780,0.332969,96004.0,96002.0,0.0184358]
[1739856757975,0.323075,96003.0,96002.0,0.0184358]
[1739856758181,0.156242,96005.0,96001.0,0.10755798]
[1739856758785,0.156242,96005.0,96002.0,0.005]
[1739856759296,0.156242,96005.0,96002.0,0.01]
[1739856759499,0.156242,96005.0,96001.0,0.10255798]
[1739856759702,0.156242,96005.0,96001.0,0.10755798]
[1739856759858,0.156242,96005.0,96001.0,0.11255798]
[1739856760030,0.156242,96005.0,96001.0,0.10755798]
[1739856760255,0.156242,96005.0,96001.0,0.13761948]
[1739856760452,0.156242,96005.0,96002.0,0.01]
[1739856760802,0.421449,96004.0,96002.0,0.01]
[1739856761006,0.25991,96003.0,96002.0,0.01]
[1739856761201,0.25991,96003.0,96002.0,0.03294195]
[1739856761615,0.25991,96003.0,96002.0,0.02794195]
[1739856761865,0.25991,96003.0,96002.0,0.02294195]
[1739856762981,0.25991,96003.0,96002.0,0.02894195]
[1739856763132,0.416155,96003.0,96002.0,0.03394195]
[1739856763477,0.759952,96003.0,96002.0,0.03394195]
[1739856763795,0.479952,96003.0,96002.0,0.03394195]
[1739856764577,0.479952,96003.0,96002.0,0.011]
[1739856765403,1.940972,96003.0,96002.0,0.011]
[1739856765615,3.261611,96003.0,96002.0,0.011]
[1739856765824,2.45434,96003.0,96002.0,0.011]
[1739856766031,2.60434,96003.0,96002.0,0.011]
[1739856766232,2.70684365,96003.0,96002.0,0.011]
[1739856766460,0.15,96002.0,96001.0,5.433e-05]
[1739856766664,3.864252,96002.0,96001.0,5.433e-05]
[1739856767220,3.96675565,96002.0,96001.0,5.433e-05]
[1739856767989,4.0692593,96002.0,96001.0,5.433e-05]
[1739856768367,4.07701526,96002.0,96001.0,0.00305433]
[1739856768964,4.07701526,96002.0,96001.0,5.433e-05]
[1739856769167,4.12581526,96002.0,96001.0,5.433e-05]
[1739856770399,4.13820829,96002.0,96001.0,5.433e-05]
[1739856772024,3.62161164,96002.0,96001.0,5.433e-05]
[1739856772226,3.27254164,96002.0,96001.0,5.433e-05]
[1739856772358,3.26014861,96002.0,96001.0,5.433e-05]
[1739856774502,3.26114861,96002.0,96001.0,5.433e-05]
[1739856775693,3.26214861,96002.0,96001.0,5.433e-05]
[1739856779954,3.2784703,96002.0,96001.0,5.433e-05]
[1739856781039,2.4911663,96002.0,96001.0,5.433e-05]
[1739856781354,3.2784703,96002.0,96001.0,5.433e-05]
[1739856782277,3.26214861,96002.0,96001.0,5.433e-05]
[1739856782652,3.41839461,96002.0,96001.0,5.433e-05]
[1739856782859,3.52089826,96002.0,96001.0,5.433e-05]
[1739856783265,3.41839461,96002.0,96001.0,5.433e-05]
[1739856783857,3.17072861,96002.0,96001.0,5.433e-05]
[1739856784061,2.93286461,96002.0,96001.0,5.433e-05]
[1739856784483,2.75036096,96002.0,96001.0,5.433e-05]
[1739856785318,2.74936096,96002.0,96001.0,5.433e-05]
[1739856785527,2.75036096,96002.0,96001.0,5.433e-05]
[1739856786064,2.74936096,96002.0,96001.0,5.433e-05]
[1739856786267,2.75036096,96002.0,96001.0,5.433e-05]
[1739856786694,2.7666809,96002.0,96001.0,5.433e-05]
[1739856786896,2.7656809,96002.0,96001.0,5.433e-05]
[1739856787199,2.7666809,96002.0,96001.0,5.433e-05]
[1739856787723,2.7656809,96002.0,96001.0,5.433e-05]
[1739856788013,2.7666809,96002.0,96001.0,5.433e-05]
[1739856788567,2.86918455,96002.0,96001.0,5.433e-05]
[1739856788801,2.94668455,96002.0,96001.0,5.433e-05]
[1739856789200,2.8441809,96002.0,96001.0,5.433e-05]
[1739856789878,2.8431809,96002.0,96001.0,5.433e-05]
[1739856790235,2.8441809,96002.0,96001.0,5.433e-05]
[1739856790811,2.8431809,96002.0,96001.0,5.433e-05]
[1739856791070,2.8441809,96002.0,96001.0,5.433e-05]
[1739856791204,2.94668455,96002.0,96001.0,5.433e-05]
[1739856791592,3.0491882,96002.0,96001.0,5.433e-05]
[1739856792220,3.0481882,96002.0,96001.0,5.433e-05]
[1739856792712,3.0491882,96002.0,96001.0,5.433e-05]
[1739856792929,3.0481882,96002.0,96001.0,5.433e-05]
[1739856793478,3.0491882,96002.0,96001.0,5.433e-05]
[1739856794349,2.94668455,96002.0,96001.0,5.433e-05]
[1739856794901,2.93036461,96002.0,96001.0,5.433e-05]
[1739856797426,2.92936461,96002.0,96001.0,5.433e-05]
[1739856797786,2.93036461,96002.0,96001.0,5.433e-05]
[1739856798084,2.92936461,96002.0,96001.0,5.433e-05]
[1739856798282,2.94668522,96002.0,96001.0,5.433e-05]
[1739856798640,3.04918887,96002.0,96001.0,5.433e-05]
[1739856799349,2.94668522,96002.0,96001.0,5.433e-05]
[1739856800280,2.94568522,96002.0,96001.0,5.433e-05]
[1739856801055,2.94668522,96002.0,96001.0,5.433e-05]
[1739856801607,2.15938122,96002.0,96001.0,5.433e-05]
[1739856801809,2.94668522,96002.0,96001.0,5.433e-05]
[1739856802045,2.86918522,96002.0,96001.0,5.433e-05]
[1739856802645,2.07095561,96002.0,96001.0,5.433e-05]
[1739856805398,2.17345926,96002.0,96001.0,5.433e-05]
[1739856806240,2.18977952,96002.0,96001.0,5.433e-05]
[1739856808152,2.08727587,96002.0,96001.0,5.433e-05]
[1739856809160,1.98477222,96002.0,96001.0,5.433e-05]
[1739856809580,1.93955522,96002.0,96001.0,5.433e-05]
[1739856810719,1.93855522,96002.0,96001.0,5.433e-05]
[1739856811088,1.93955522,96002.0,96001.0,5.433e-05]
[1739856811537,1.93855522,96002.0,96001.0,5.433e-05]
[1739856811740,1.93955522,96002.0,96001.0,5.433e-05]
[1739856811895,1.93855522,96002.0,96001.0,5.433e-05]
[1739856812790,1.93955522,96002.0,96001.0,5.433e-05]
[1739856813237,1.93855522,96002.0,96001.0,5.433e-05]
[1739856813595,1.93955522,96002.0,96001.0,5.433e-05]
[1739856814012,2.12115887,96002.0,96001.0,5.433e-05]
[1739856814551,1.31753461,96002.0,96001.0,5.433e-05]
[1739856814768,0.49760561,96002.0,96001.0,5.433e-05]
[1739856815087,3.41188161,96002.0,96001.0,5.433e-05]
[1739856815288,3.44721261,96002.0,96001.0,5.433e-05]
[1739856816154,3.34470896,96002.0,96001.0,5.433e-05]
[1739856816373,3.09948496,96002.0,96001.0,5.433e-05]
[1739856816577,2.48139896,96002.0,96001.0,5.433e-05]
[1739856817246,1.91868796,96002.0,96001.0,5.433e-05]
[1739856817415,1.85177896,96002.0,96001.0,5.433e-05]
[1739856817615,1.83340396,96002.0,96001.0,5.433e-05]
[1739856817819,1.85072357,96002.0,96001.0,5.433e-05]
[1739856818201,1.84972357,96002.0,96001.0,5.433e-05]
[1739856818416,1.85072357,96002.0,96001.0,5.433e-05]
[1739856818637,1.84972357,96002.0,96001.0,5.433e-05]
[1739856818852,1.85072357,96002.0,96001.0,5.433e-05]
[1739856819473,1.84972357,96002.0,96001.0,5.433e-05]
[1739856819638,1.85072357,96002.0,96001.0,5.433e-05]
[1739856819835,1.11862557,96002.0,96001.0,5.433e-05]
[1739856820053,0.95230596,96002.0,96001.0,0.07805433]
[1739856820269,0.95330596,96002.0,96001.0,0.07805433]
[1739856820480,1.05835396,96002.0,96001.0,0.07805433]
[1739856820688,1.22570696,96002.0,96001.0,0.07805433]
[1739856820895,1.05835396,96002.0,96001.0,0.07805433]
[1739856821125,1.05735396,96002.0,96001.0,0.07805433]
[1739856821325,1.05835396,96002.0,96001.0,0.07805433]
[1739856822304,1.05935396,96002.0,96001.0,0.07805433]
[1739856822718,1.05835396,96002.0,96001.0,0.07805433]
[1739856823193,1.25288796,96002.0,96001.0,0.07805433]
[1739856823454,1.25288796,96002.0,96001.0,5.433e-05]
[1739856824724,1.25188796,96002.0,96001.0,5.433e-05]
[1739856824924,1.25288796,96002.0,96001.0,5.433e-05]
[1739856825305,1.25188796,96002.0,96001.0,5.433e-05]
[1739856825685,1.25288796,96002.0,96001.0,5.433e-05]
[1739856827557,0.53869396,96002.0,96001.0,5.433e-05]
[1739856827760,0.31600196,96002.0,96001.0,5.433e-05]
[1739856828171,1.80499996,96002.0,96001.0,5.433e-05]
[1739856828721,1.80399996,96002.0,96001.0,5.433e-05]
[1739856829280,1.80299996,96002.0,96001.0,5.433e-05]
[1739856833498,1.10130596,96002.0,96001.0,5.433e-05]
[1739856833729,1.21092296,96002.0,96001.0,5.433e-05]
[1739856833994,1.21092296,96002.0,96001.0,0.22845798]
[1739856833995,0.12886396,96002.0,96001.0,0.22845798]
[1739856834213,0.00775596,96002.0,96001.0,0.22845798]
[1739856838330,0.00775596,96002.0,96001.0,0.22945798]
[1739856838746,0.00775596,96002.0,96001.0,0.23045798]
[1739856838992,0.00775596,96002.0,96001.0,0.22945798]
[1739856839489,0.00775596,96002.0,96001.0,0.23045798]
[1739856839734,0.00775596,96002.0,96001.0,0.22845798]
[1739856839992,0.00775596,96002.0,96001.0,0.23345798]
[1739856840227,0.00775596,96002.0,96001.0,0.25680378]
[1739856841295,0.00775596,96002.0,96001.0,0.25580378]
[1739856841515,0.00775596,96002.0,96001.0,0.25980378]
[1739856844493,0.0001703,96006.0,96001.0,0.59490378]
[1739856844688,0.0001703,96006.0,96005.0,0.20870365]
[1739856844894,0.0001703,96006.0,96005.0,0.18570365]
[1739856846075,0.0001703,96006.0,96005.0,0.19270365]
[1739856846326,0.0001703,96006.0,96005.0,0.18570365]
[1739856846700,0.0001703,96006.0,96005.0,0.19270365]
[1739856847332,0.0001703,96006.0,96005.0,0.26082644]
[1739856847505,0.0001703,96006.0,96005.0,0.19970365]
[1739856848650,0.11957683,96020.0,96005.0,0.19970365]
[1739856848857,0.156235,96009.0,96005.0,0.19970365]
[1739856849119,0.208294,96018.0,96005.0,0.19970365]
[1739856849324,0.11957683,96020.0,96005.0,0.19970365]
[1739856849325,0.156238,96007.0,96005.0,0.19970365]
[1739856849532,0.156238,96007.0,96005.0,0.19270365]
[1739856849731,0.156236,96009.0,96005.0,0.19270365]
[1739856850164,0.208285,96023.0,96005.0,0.007]
[1739856850165,0.156238,96007.0,96005.0,0.007]
[1739856850375,0.156246,96002.0,96001.0,5.433e-05]
[1739856850600,2.178728,96002.0,96001.0,5.433e-05]
[1739856850802,1.948296,96002.0,96001.0,5.433e-05]
[1739856851002,0.787304,96003.0,96001.0,5.433e-05]
[1739856851217,0.156246,96002.0,96001.0,5.433e-05]
[1739856851429,1.60893854,96002.0,96001.0,5.433e-05]
[1739856851635,1.03894054,96002.0,96001.0,5.433e-05]
[1739856851853,0.69098754,96002.0,96001.0,5.433e-05]
[1739856852063,0.52918245,96002.0,96001.0,5.433e-05]
[1739856852288,0.40758245,96002.0,96001.0,0.00505433]
[1739856852499,0.14680445,96002.0,96001.0,0.00505433]
[1739856852728,0.01382645,96002.0,96001.0,0.01005433]
[1739856852931,0.01382645,96002.0,96001.0,0.11255798]
[1739856853144,0.15,96007.0,96001.0,0.22154738]
[1739856853348,0.15,96007.0,96002.0,0.10250365]
[1739856853557,0.156243,96005.0,96002.0,0.10250365]
[1739856853743,0.306239,96007.0,96002.0,0.10250365]
[1739856853963,0.15,96009.0,96002.0,0.10250365]
[1739856854168,0.156244,96004.0,96002.0,0.10250365]
[1739856854490,0.787304,96003.0,96002.0,0.10250365]
[1739856854702,0.787304,96003.0,96001.0,0.00505433]
[1739856854703,0.156246,96002.0,96001.0,0.00505433]
[1739856854909,0.94355,96002.0,96001.0,5.433e-05]
[1739856855520,0.271082,96002.0,96001.0,5.433e-05]
[1739856855732,0.166382,96002.0,96001.0,5.433e-05]
[1739856855938,0.259178,96003.0,96001.0,5.433e-05]
[1739856856405,0.415423,96003.0,96001.0,0.00505433]
[1739856856615,0.166382,96002.0,96001.0,0.00505433]
[1739856857019,0.17414037,96002.0,96001.0,0.01105433]
[1739856857677,0.00775837,96002.0,96001.0,0.01105433]
[1739856857888,0.11108937,96002.0,96001.0,0.01105433]
[1739856858096,0.19858174,96005.0,96001.0,0.00605433]
[1739856858273,0.262262,96004.0,96001.0,0.01105433]
[1739856858478,0.186909,96003.0,96001.0,0.01105433]
[1739856858713,0.225009,96004.0,96001.0,0.00605433]
[1739856858919,0.156245,96003.0,96001.0,0.01105433]
[1739856859093,0.521721,96002.0,96001.0,5.433e-05]
[1739856859531,0.521721,96002.0,96001.0,0.00405433]
[1739856859734,0.156242,96005.0,96001.0,5.433e-05]
[1739856859942,0.451437,96004.0,96001.0,5.433e-05]
[1739856860146,0.457756,96003.0,96001.0,0.00505433]
[1739856860349,0.683973,96002.0,96001.0,0.00505433]
[1739856860531,0.683973,96002.0,96001.0,0.00905433]
[1739856860948,0.683973,96002.0,96001.0,0.00505433]
[1739856861362,0.683973,96002.0,96001.0,5.433e-05]
[1739856861778,0.683973,96002.0,96001.0,0.01005433]
[1739856863768,0.683973,96002.0,96001.0,0.00505433]
[1739856864189,0.683973,96002.0,96001.0,0.01105433]
[1739856865332,0.156245,96003.0,96001.0,0.01105433]
[1739856865538,0.405,96002.0,96001.0,0.01105433]
[1739856865941,1.317146,96002.0,96001.0,0.01105433]
[1739856866156,1.143275,96002.0,96001.0,0.01105433]
[1739856866366,1.130661,96002.0,96001.0,0.01105433]
[1739856866577,1.119861,96002.0,96001.0,0.01105433]
[1739856867195,1.061683,96002.0,96001.0,0.00505433]
[1739856867414,1.061683,96002.0,96001.0,0.01005433]
[1739856867932,1.061683,96002.0,96001.0,0.00505433]
[1739856868178,1.061683,96002.0,96001.0,0.01105433]
[1739856868425,1.217929,96002.0,96001.0,0.01105433]
[1739856875766,1.23735069,96002.0,96001.0,0.01105433]
[1739856876488,1.38735069,96002.0,96001.0,0.01105433]
[1739856879766,1.38752099,96002.0,96001.0,0.01105433]
[1739856881679,1.30988699,96002.0,96001.0,0.01105433]
[1739856883178,1.04357099,96002.0,96001.0,0.01105433]
[1739856883420,0.99247899,96002.0,96001.0,0.01105433]
[1739856884410,0.9730573,96002.0,96001.0,0.01105433]
[1739856892158,0.5680573,96002.0,96001.0,0.01105433]
[1739856892591,0.9730573,96002.0,96001.0,0.01105433]
[1739856894194,0.7114163,96002.0,96001.0,0.01105433]
[1739856894403,0.3820143,96002.0,96001.0,0.01105433]
[1739856895071,0.3820143,96002.0,96001.0,0.02004976]
[1739856895233,0.3642723,96002.0,96001.0,0.02004976]
[1739856895636,0.1501703,96002.0,96001.0,0.01105433]
[1739856896620,0.5403653,96002.0,96001.0,0.01105433]
[1739856896861,0.4349633,96002.0,96001.0,0.01105433]
[1739856897615,0.5912093,96002.0,96001.0,0.01105433]
[1739856901639,0.3064163,96002.0,96001.0,0.01105433]
[1739856901846,1.9558463,96002.0,96001.0,0.01105433]
[1739856902066,1.7794473,96002.0,96001.0,0.01105433]
[1739856902699,1.3744473,96002.0,96001.0,0.01105433]
[1739856902902,1.7794473,96002.0,96001.0,0.01105433]
[1739856903035,1.7506303,96002.0,96001.0,0.01105433]
[1739856903438,1.5829183,96002.0,96001.0,0.01105433]
[1739856906799,1.5122823,96002.0,96001.0,0.01105433]
[1739856907001,1.3542873,96002.0,96001.0,0.01105433]
[1739856907180,1.0736743,96002.0,96001.0,0.01105433]
[1739856908649,0.9029273,96002.0,96001.0,0.01105433]
[1739856910602,0.9831273,96002.0,96001.0,0.01105433]
[1739856911039,1.08563095,96002.0,96001.0,0.01105433]
[1739856911238,1.13143095,96002.0,96001.0,0.01105433]
[1739856911438,0.156276,95984.0,95983.0,0.0001703]
[1739856911646,0.15631998,95984.0,95983.0,0.0001703]
[1739856911987,1.93486398,95984.0,95983.0,0.0001703]
[1739856912188,1.94263634,95984.0,95983.0,0.0001703]
[1739856912391,1.95759569,95984.0,95983.0,0.0001703]
[1739856912996,1.95759569,95984.0,95983.0,0.0041703]
[1739856913509,1.95759569,95984.0,95983.0,0.0081703]
[1739856913510,2.18794034,95984.0,95983.0,0.0081703]
[1739856913729,2.18794034,95984.0,95983.0,0.0041703]
[1739856914121,2.18794034,95984.0,95983.0,0.0081703]
[1739856915064,2.26974034,95984.0,95983.0,0.0081703]
[1739856915365,2.26974034,95984.0,95983.0,0.0041703]
[1739856915647,2.26974034,95984.0,95983.0,0.0001703]
[1739856915856,2.26974034,95984.0,95983.0,0.0061703]
[1739856916059,2.26974034,95984.0,95983.0,0.0031703]
[1739856916282,2.26974034,95984.0,95983.0,0.0001703]
[1739856916687,2.26196798,95984.0,95983.0,0.0001703]
[1739856918013,2.27829232,95984.0,95983.0,0.0001703]
[1739856921086,2.58079597,95984.0,95983.0,0.0001703]
[1739856922235,2.58379597,95984.0,95983.0,0.0001703]
[1739856922643,2.56747163,95984.0,95983.0,0.0001703]
[1739856923757,2.56947163,95984.0,95983.0,0.0001703]
[1739856924858,2.26696798,95984.0,95983.0,0.0001703]
[1739856925048,2.23202498,95984.0,95983.0,0.0001703]
[1739856925282,2.04520498,95984.0,95983.0,0.0001703]
[1739856925980,2.04020498,95984.0,95983.0,0.0001703]
[1739856926195,2.04320498,95984.0,95983.0,0.0001703]
[1739856926414,2.14770863,95984.0,95983.0,0.0001703]
[1739856926617,2.14570863,95984.0,95983.0,0.0001703]
[1739856927024,2.16403291,95984.0,95983.0,0.0001703]
[1739856928248,2.16103291,95984.0,95983.0,0.0001703]
[1739856928669,2.16403291,95984.0,95983.0,0.0001703]
[1739856929079,2.35903291,95984.0,95983.0,0.0001703]
[1739856929283,2.36403291,95984.0,95983.0,0.0001703]
[1739856929704,2.36203291,95984.0,95983.0,0.0001703]
[1739856929920,2.36103291,95984.0,95983.0,0.0001703]
[1739856930130,2.36403291,95984.0,95983.0,0.0001703]
[1739856930381,0.15,95961.0,95952.0,0.16651388]
[1739856930538,0.156326,95953.0,95952.0,0.16651388]
[1739856930762,0.15,95961.0,95952.0,0.16651388]
[1739856930968,0.156323,95955.0,95952.0,0.16651388]
[1739856931174,0.156325,95954.0,95952.0,0.16651388]
[1739856931797,0.15636894,95954.0,95952.0,0.16651388]
[1739856932329,0.392408,95953.0,95952.0,0.17151388]
[1739856932483,1.286811,95953.0,95952.0,0.0053404]
[1739856932722,1.286811,95953.0,95952.0,0.0123404]
[1739856932889,1.286811,95953.0,95952.0,0.0003404]
[1739856933090,1.286811,95953.0,95952.0,0.0073404]